bitfinex/quotes_SOLUSD_20241001
["timestamp","ask_amount","ask_price","bid_price","bid_amount"]
[1727803382312,6.9694,143.49,143.44,2.0]
[1727803382507,6.9694,143.49,143.37,72.75228848]
[1727803382508,6.9678,143.52,143.46,2.0]
[1727803382681,6.9673,143.53,143.49,2.0]
[1727803382996,6.9673,143.53,143.44,6.9713]
[1727803382997,6.9673,143.53,143.51,2.0]
[1727803383195,1.1755255,143.59,143.53,2.0]
[1727803383507,1.1755255,143.59,143.43,55.31518848]
[1727803383508,6.9673,143.53,143.51,2.0]
[1727803383701,6.9672,143.53,143.49,2.0]
[1727803383880,1.1755255,143.59,143.55,2.0]
[1727803384086,6.9664,143.55,143.53,2.0]
[1727803384301,6.9658,143.56,143.53,2.0]
[1727803384612,1.1755255,143.59,143.58,2.0]
[1727803384782,8.1401255,143.59,143.56,2.0]
[1727803384983,1.1755255,143.59,143.58,2.0]
[1727803385182,6.9617,143.65,143.63,2.0]
[1727803385408,6.9606,143.67,143.65,2.0]
[1727803385699,6.9584,143.72,143.67,2.0]
[1727803385923,0.2119885,143.77,143.7,2.0]
[1727803386105,0.2119885,143.77,143.58,2.0]
[1727803386106,6.957,143.74,143.72,2.0]
[1727803386479,5.54056369,143.76,143.74,2.0]
[1727803386684,12.49666369,143.76,143.74,2.0]
[1727803386898,0.2119885,143.77,143.76,2.0]
[1727803387293,1.1755255,143.79,143.78,2.0]
[1727803387492,0.3167905,143.88,143.87,2.0]
[1727803387994,0.3167905,143.88,143.87,57.31518848]
[1727803388190,6.945,143.99,143.98,2.0]
[1727803388389,17.3571,144.04,143.98,2.0]
[1727803388697,17.3571,144.04,143.86,17.3777]
[1727803388698,6.9459,143.97,143.95,2.0]
[1727803388901,0.3787129,143.99,143.98,2.0]
[1727803389409,1.3648461,144.07,144.05,2.0]
[1727803390392,7.2869,144.16,144.14,2.0]
[1727803390947,0.35,144.16,144.14,2.0]
[1727803391209,0.35,144.16,144.15,55.31518848]
[1727803391591,0.3167905,144.18,144.17,2.0]
[1727803391799,6.9376,144.14,144.13,2.0]
[1727803392205,6.9385,144.13,144.11,2.0]
[1727803392406,6.9367,144.16,144.15,2.0]
[1727803392609,6.9362,144.17,144.16,2.0]
[1727803392910,0.3167905,144.18,144.17,2.0]
[1727803393113,6.9326,144.25,144.2,2.0]
[1727803393291,6.9326,144.25,144.23,2.0]
[1727803393708,1.1528576,144.26,144.21,2.0]
[1727803393909,1.1528576,144.26,144.09,7.0893]
[1727803393910,1.1528576,144.26,144.25,2.0]
[1727803394292,0.2119885,144.36,144.33,2.0]
[1727803394490,7.3983,144.61,144.42,2.0]
[1727803394694,7.3983,144.61,144.46,2.0]
[1727803394695,8.3917481,144.47,144.46,2.0]
[1727803394895,6.9237,144.43,144.42,2.0]
[1727803395121,6.9237,144.43,144.32,55.31518848]
[1727803395122,6.9253,144.4,144.38,2.0]
[1727803395496,17.3084,144.44,144.35,2.0]
[1727803395896,34.6117,144.46,144.39,2.0]
[1727803395897,6.9252,144.4,144.39,2.0]
[1727803396198,1.4696481,144.47,144.45,2.0]
[1727803396507,1.4696481,144.47,144.32,57.31518848]
[1727803396508,17.2852,144.64,144.53,2.0]
[1727803396695,6.917,144.57,144.56,2.0]
[1727803396998,17.2902,144.6,144.55,2.0]
[1727803397215,0.2119885,144.65,144.62,2.0]
[1727803397535,0.2119885,144.65,144.6,2.0]
[1727803397740,0.2119885,144.65,144.64,2.0]
[1727803398415,0.2119885,144.65,144.58,2.0]
[1727803398416,1.594441,144.78,144.7,2.0]
[1727803398626,1.594441,144.78,144.58,2.0]
[1727803398627,6.9094,144.73,144.72,2.0]
[1727803399140,6.9108,144.7,144.69,2.0]
[1727803399315,6.9084,144.75,144.74,2.0]
[1727803399515,17.2712,144.75,144.65,2.0]
[1727803399716,17.2712,144.75,144.68,2.0]
[1727803399934,6.911,144.7,144.68,2.0]
[1727803400134,6.9122,144.67,144.66,2.0]
[1727803400419,1.594441,144.78,144.7,2.0]
[1727803400735,1.594441,144.78,144.76,2.0]
[1727803401612,8.501741,144.78,144.76,2.0]
[1727803401933,1.594441,144.78,144.55,59.45703541]
[1727803402230,6.9154,144.61,144.56,1.58115266]
[1727803402434,52.0,144.75,144.48,54.76103541]
[1727803402646,52.0,144.75,144.47,2.0]
[1727803402647,6.9182,144.55,144.46,7.6263]
[1727803402815,6.9172,144.57,144.45,54.76103541]
[1727803403015,6.9172,144.57,144.46,1.58224718]
[1727803403315,6.9148,144.62,144.54,54.76103541]
[1727803403515,17.2758,144.72,144.55,1.58126204]
[1727803403711,52.0,144.74,144.55,1.58126204]
[1727803403939,52.0,144.74,144.48,54.76103541]
[1727803403940,6.9166,144.58,144.48,54.76103541]
[1727803404121,34.5516,144.72,144.51,54.76103541]
[1727803404438,6.9143,144.63,144.51,1.58169973]
[1727803404628,17.278,144.7,144.54,54.76103541]
[1727803404854,17.2722,144.75,144.57,54.76103541]
[1727803405159,34.5399,144.77,144.6,54.76103541]
[1727803405160,17.2701,144.76,144.6,54.76103541]
[1727803405356,6.9115,144.69,144.58,1.58093393]
[1727803405561,34.5399,144.77,144.58,1.58093393]
[1727803405562,6.9134,144.65,144.58,1.58093393]
[1727803406354,6.9123,144.67,144.58,1.58093393]
[1727803406766,6.9139,144.64,144.58,1.58093393]
[1727803407067,6.9135,144.65,144.54,54.76103541]
[1727803407242,6.9127,144.66,144.55,1.58126204]
[1727803407449,23.776884,144.71,144.55,1.58126204]
[1727803407742,6.9139,144.64,144.55,1.58126204]
[1727803407943,20.0,144.71,144.55,1.58126204]
[1727803408143,6.9172,144.57,144.55,1.58126204]
[1727803408366,20.0,144.67,144.45,54.76103541]
[1727803408367,6.9168,144.58,144.45,54.76103541]
[1727803408541,6.9168,144.58,144.43,18.7397]
[1727803408542,34.5519,144.71,144.54,54.76103541]
[1727803408749,20.0,144.7,144.57,54.76103541]
[1727803408953,6.9116,144.69,144.58,1.58093393]
[1727803409152,6.9121,144.68,144.58,1.58093393]
[1727803409351,6.9114,144.69,144.6,54.76103541]
[1727803409555,6.9116,144.69,144.61,1.58060596]
[1727803409758,17.271,144.76,144.61,1.58060596]
[1727803410064,1.594441,144.78,144.61,1.58060596]
[1727803410065,1.594441,144.78,144.66,54.76103541]
[1727803410266,6.9106,144.71,144.61,1.58060596]
[1727803410443,1.594441,144.78,144.61,1.58060596]
[1727803410640,1.594441,144.78,144.66,54.76103541]
[1727803410869,1.594441,144.78,144.71,6.9101]
[1727803411067,1.594441,144.78,144.72,56.34043997]
[1727803411248,0.2119885,144.94,144.75,54.76103541]
[1727803411569,6.9027,144.87,144.79,6.9064]
[1727803411772,17.4609885,144.94,144.77,17.2677]
[1727803411946,17.2531,144.91,144.77,17.2677]
[1727803412268,6.9037,144.85,144.77,17.2677]
[1727803412444,17.2531,144.91,144.74,54.76103541]
[1727803412645,17.2531,144.91,144.75,1.57907722]
[1727803412849,0.2119885,144.94,144.75,1.57907722]
[1727803412850,6.9021,144.89,144.77,54.76103541]
[1727803413047,0.2119885,144.94,144.78,1.57875002]
[1727803413449,34.5075,144.9,144.68,54.76103541]
[1727803413652,6.9082,144.76,144.68,1.57984122]
[1727803413871,6.9087,144.75,144.68,1.57984122]
[1727803414069,17.2624,144.83,144.68,1.57984122]
[1727803414070,6.909,144.74,144.68,1.57984122]
[1727803414260,17.2624,144.83,144.68,1.57984122]
[1727803414463,6.82480486,144.89,144.68,1.57984122]
[1727803414464,6.9095,144.73,144.68,1.57984122]
[1727803414680,17.2661,144.8,144.64,54.76103541]
[1727803414862,34.5199,144.85,144.65,1.58016888]
[1727803415046,34.5199,144.85,144.69,54.76103541]
[1727803415047,23.776884,144.81,144.69,54.76103541]
[1727803415356,17.2561,144.88,144.72,54.76103541]
[1727803415553,17.2561,144.88,144.72,56.34043997]
[1727803415554,6.9061,144.8,144.72,56.34043997]
[1727803415864,6.9061,144.8,144.72,1.57940456]
[1727803416066,6.9067,144.79,144.72,1.57940456]
[1727803416267,17.26,144.85,144.73,6.9092]
[1727803416470,17.2913,144.91,144.74,1.57918632]
[1727803416678,17.2575,144.87,144.74,1.57918632]
[1727803417183,6.9052,144.82,144.75,6.9083]
[1727803417350,17.2524,144.91,144.75,54.76103541]
[1727803417550,17.2524,144.91,144.77,17.2682]
[1727803417750,6.9056,144.81,144.76,1.57896814]
[1727803417969,17.2561,144.88,144.76,1.57896814]
[1727803417970,6.9051,144.82,144.76,1.57896814]
[1727803418198,6.9048,144.83,144.76,8.48676814]
[1727803418469,6.904,144.85,144.78,6.9069]
[1727803418783,0.2119885,144.94,144.79,17.2658]
[1727803419072,0.2119885,144.94,144.77,54.76103541]
[1727803419268,0.2119885,144.94,144.75,17.2705]
[1727803419473,6.9042,144.84,144.77,6.9074]
[1727803419652,17.2536,144.9,144.78,17.267]
[1727803419847,6.9056,144.81,144.71,54.76103541]
[1727803420158,20.0,144.86,144.68,54.76103541]
[1727803420372,6.9075,144.78,144.7,6.9103]
[1727803420687,6.9071,144.78,144.71,6.9103]
[1727803420856,6.9065,144.8,144.72,17.2743]
[1727803421061,51.7786,144.85,144.75,6.9084]
[1727803421062,6.9054,144.82,144.75,6.9084]
[1727803421250,23.776884,144.84,144.72,17.2743]
[1727803421580,6.9075,144.77,144.7,6.9105]
[1727803421771,23.776884,144.84,144.69,1.57973203]
[1727803421970,17.2598,144.85,144.71,17.2753]
[1727803422170,17.2598,144.85,144.74,6.9089]
[1727803422361,6.9055,144.82,144.75,1.57907722]
[1727803422567,34.5066,144.9,144.75,1.57907722]
[1727803422866,6.9063,144.8,144.75,1.57907722]
[1727803423052,34.5066,144.9,144.75,1.57907722]
[1727803423254,34.5066,144.9,144.58,35.205309]
[1727803423255,34.5275,144.82,144.58,35.205309]
[1727803423495,20.0,144.81,144.64,17.2841]
[1727803423677,6.9085,144.75,144.68,6.9113]
[1727803423857,6.908,144.76,144.69,6.9108]
[1727803424062,6.9084,144.75,144.68,6.9117]
[1727803424266,23.776884,144.79,144.66,54.76103541]
[1727803424466,34.5182,144.86,144.72,54.76103541]
[1727803424774,2.0,145.0,144.75,54.76103541]
[1727803425073,1609.8,145.23,144.72,1.57940456]
[1727803425074,0.2119885,144.94,144.81,54.76103541]
[1727803425271,0.2119885,144.94,144.84,72.02033541]
[1727803425472,0.2119885,144.94,144.88,6.9021]
[1727803425874,0.2119885,144.94,144.85,1.57798708]
[1727803426079,0.2119885,144.94,144.9,17.253]
[1727803426384,25.6321,145.11,144.9,54.76103541]
[1727803426555,6.8932,145.07,144.93,54.76103541]
[1727803426752,26.9421,145.21,144.96,54.76103541]
[1727803426951,6.8891,145.16,145.06,6.8934]
[1727803427154,6.8895,145.15,145.06,6.8934]
[1727803427361,1.6380092,145.08,145.05,17.2343]
[1727803427566,1.6380092,145.08,145.06,6.8933]
[1727803427956,1.6380092,145.08,145.07,1.57559404]
[1727803428553,1.6380092,145.08,145.0,24.1368]
[1727803428554,1.6380092,145.08,145.01,6.8957]
[1727803428886,1.6380092,145.08,145.0,17.2406]
[1727803429064,6.8934,145.07,145.0,17.2406]
[1727803429252,1.6380092,145.08,145.03,17.2366]
[1727803429681,1.6380092,145.08,145.03,24.1315]
[1727803430058,1.6380092,145.08,145.06,6.8935]
[1727803430290,1.6380092,145.08,145.07,1.57559404]
[1727803430580,1.6380092,145.08,145.03,17.2366]
[1727803430581,1.6380092,145.08,145.03,24.1314]
[1727803430877,1.6380092,145.08,144.94,54.76103541]
[1727803431080,1.6380092,145.08,145.03,6.8947]
[1727803431283,1.6380092,145.08,145.03,17.2373]
[1727803431583,1.6380092,145.08,144.99,17.2422]
[1727803431756,1.6380092,145.08,145.0,6.8964]
[1727803431955,1.2933692,145.08,145.0,6.8964]
[1727803432455,1.2933692,145.08,144.95,18.82379843]
[1727803432657,1.2933692,145.08,144.95,36.07079843]
[1727803432858,1.2933692,145.08,145.06,6.8934]
[1727803433055,1.2933692,145.08,144.97,54.76103541]
[1727803433056,1.2933692,145.08,145.04,17.2358]
[1727803433267,1.2933692,145.08,145.07,6.8932]
[1727803433878,26.9421,145.21,145.15,6.8891]
[1727803433879,19.2218,145.21,145.15,6.8891]
[1727803434082,19.2218,145.21,145.06,54.76103541]
[1727803434254,0.2119885,145.24,145.1,54.76103541]
[1727803434577,6.8871,145.2,145.13,6.8902]
[1727803434815,0.2119885,145.24,145.1,54.76103541]
[1727803434972,0.2119885,145.24,145.04,64.3521236]
[1727803434973,0.2119885,145.24,145.13,71.98643541]
[1727803435168,0.2119885,145.24,145.07,54.76103541]
[1727803435371,0.2119885,145.24,145.07,64.3521236]
[1727803435574,0.2119885,145.24,145.13,17.225]
[1727803435884,6.8871,145.2,145.13,17.225]
[1727803436079,0.2119885,145.24,145.07,54.76103541]
[1727803436383,0.2119885,145.24,145.1,89.21913541]
[1727803436585,0.2119885,145.24,145.13,54.76103541]
[1727803436778,6.8857,145.23,145.15,6.889]
[1727803436981,0.2119885,145.24,145.17,6.8884]
[1727803437179,0.2119885,145.24,145.14,17.2241]
[1727803437391,6.8861,145.22,145.15,6.8893]
[1727803437706,0.2119885,145.24,145.13,54.76103541]
[1727803437707,6.8856,145.23,145.13,54.76103541]
[1727803437901,0.2119885,145.24,145.14,17.2239]
[1727803438201,0.2119885,145.24,145.1,34.4581]
[1727803438402,0.2119885,145.24,145.1,17.2287]
[1727803438580,6.8862,145.22,145.15,6.8892]
[1727803438899,0.2119885,145.24,145.19,6.8873]
[1727803439104,0.2119885,145.24,145.17,17.2206]
[1727803439409,0.2119885,145.24,145.2,17.217]
[1727803439577,0.2119885,145.24,145.21,6.8865]
[1727803440001,0.2119885,145.24,145.23,6.8856]
[1727803440305,1.9752692,145.37,145.3,17.2048]
[1727803440802,8.8544692,145.37,145.3,24.0866]
[1727803441209,1.9752692,145.37,145.19,54.76103541]
[1727803441373,1.9752692,145.37,145.21,6.8863]
[1727803441583,17.2025,145.33,145.23,6.8852]
[1727803441779,6.8846,145.25,145.18,24.1065]
[1727803442207,23.776884,145.27,145.21,17.2161]
[1727803442388,23.776884,145.27,145.13,64.18464564]
[1727803442389,23.776884,145.28,145.1,54.76103541]
[1727803442587,23.776884,145.19,145.11,6.8909]
[1727803442815,23.776884,145.19,145.07,6.8928]
[1727803442816,23.776884,145.14,145.07,6.8928]
[1727803443105,23.776884,145.19,145.03,17.2371]
[1727803443106,23.776884,145.17,145.03,17.2371]
[1727803443285,23.776884,145.14,144.99,17.2422]
[1727803443482,23.776884,145.05,144.96,1.57678965]
[1727803443708,30.671384,145.05,144.96,1.57678965]
[1727803443888,30.671384,145.05,144.97,6.8979]
[1727803444089,54.0575,145.25,145.02,54.76103541]
[1727803444309,54.0575,145.25,145.06,78.88793541]
[1727803444310,6.8901,145.14,145.06,78.88793541]
[1727803444499,19.6333,145.25,145.12,17.226]
[1727803444692,19.6333,145.25,145.06,63.12966626]
[1727803444885,19.6333,145.25,145.08,17.2314]
[1727803445095,6.8852,145.24,145.16,6.8888]
[1727803445299,19.6333,145.25,145.11,6.8909]
[1727803445604,19.6333,145.25,145.13,6.8902]
[1727803445819,19.6333,145.25,145.06,54.76103541]
[1727803445982,19.6333,145.25,145.13,6.8899]
[1727803445983,6.8867,145.21,145.13,6.8899]
[1727803446188,19.6333,145.25,145.12,17.2263]
[1727803446387,23.776884,145.24,145.12,17.2263]
[1727803446687,19.6333,145.25,145.12,17.2263]
[1727803446899,6.8863,145.22,145.12,17.2263]
[1727803447093,6.8855,145.24,145.17,6.8883]
[1727803447294,7.9179,145.31,145.18,54.76103541]
[1727803447511,7.9179,145.31,145.15,54.76103541]
[1727803447689,7.9179,145.31,145.12,54.76103541]
[1727803447890,17.2075,145.29,145.13,17.2253]
[1727803448092,7.9179,145.31,145.15,89.20683541]
[1727803448298,7.9179,145.31,145.18,54.76103541]
[1727803448497,7.9179,145.31,145.15,34.4458]
[1727803448498,7.9179,145.31,145.25,17.211]
[1727803448814,7.9179,145.31,145.21,54.76103541]
[1727803448815,6.8832,145.28,145.21,17.2158]
[1727803448993,7.9179,145.31,145.18,6.8877]
[1727803449202,6.8848,145.25,145.18,6.8877]
[1727803449422,7.9179,145.31,145.17,17.2209]
[1727803449423,6.8853,145.24,145.17,17.2209]
[1727803449914,6.8851,145.24,145.17,24.1091]
[1727803450122,23.776884,145.23,145.17,17.2209]
[1727803450615,23.776884,145.23,145.09,54.76103541]
[1727803450790,23.776884,145.2,145.14,6.8898]
[1727803450990,23.776884,145.2,145.13,17.2251]
[1727803451204,23.776884,145.21,145.13,17.2251]
[1727803451411,23.776884,145.21,145.09,54.76103541]
[1727803451412,23.776884,145.21,145.17,6.8883]
[1727803451608,23.776884,145.21,145.16,6.8889]
[1727803451913,23.776884,145.21,145.17,6.8883]
[1727803452121,23.776884,145.21,145.18,6.8878]
[1727803452492,23.776884,145.21,145.15,17.2229]
[1727803452691,23.776884,145.18,145.11,17.2275]
[1727803453019,23.776884,145.22,145.17,6.8883]
[1727803453220,6.8851,145.24,145.18,6.8877]
[1727803453539,6.8847,145.25,145.19,6.8875]
[1727803453701,6.8847,145.25,145.18,6.8879]
[1727803453903,6.8841,145.27,145.21,6.8865]
[1727803454116,6.884,145.27,145.2,24.1043]
[1727803454429,25.1234,145.31,145.12,54.76103541]
[1727803454430,7.9179,145.31,145.16,54.76103541]
[1727803454589,7.9179,145.31,145.22,17.2149]
[1727803454795,6.8834,145.28,145.22,17.2149]
[1727803455018,6.8844,145.26,145.2,6.8867]
[1727803455189,6.8837,145.28,145.2,6.887]
[1727803455395,6.8843,145.26,145.2,6.887]
[1727803455610,7.9179,145.31,145.2,17.2164]
[1727803455830,7.9179,145.31,145.13,34.45]
[1727803456124,18.3448,145.34,145.29,6.8827]
[1727803456322,18.3448,145.34,145.3,17.2057]
[1727803456618,18.3448,145.34,145.29,6.8827]
[1727803456919,18.3448,145.34,145.28,17.207]
[1727803457091,18.3448,145.34,145.29,6.8823]
[1727803457293,1.9752692,145.37,145.28,17.207]
[1727803457490,1.9752692,145.37,145.24,54.76103541]
[1727803457694,1.9752692,145.37,145.36,6.8794]
[1727803458223,1.9752692,145.37,145.33,17.2011]
[1727803458400,1.9752692,145.37,145.35,6.8798]
[1727803458597,1.9752692,145.37,145.33,17.2011]
[1727803458799,6.879,145.37,145.31,6.8818]
[1727803458999,6.879,145.37,145.29,17.2057]
[1727803459000,8.6503681,145.37,145.32,6.8812]
[1727803459214,8.6503681,145.37,145.32,17.2026]
[1727803459215,1.7713681,145.37,145.32,17.2026]
[1727803459416,1.7713681,145.37,145.36,6.8794]
[1727803459699,1.7713681,145.37,145.27,54.76103541]
[1727803460109,1.7713681,145.37,145.36,6.8794]
[1727803461017,1.7713681,145.37,145.36,61.64043541]
[1727803462423,1.7713681,145.37,145.36,6.8794]
[1727803463617,1.7713681,145.37,145.36,61.64043541]
[1727803463824,1.7713681,145.37,145.36,6.8794]
[1727803466120,1.7713681,145.37,145.3,17.2046]
[1727803466427,1.7713681,145.37,145.18,6.91389554]
[1727803466428,1.7713681,145.37,145.36,6.8794]
[1727803466924,1.7713681,145.37,145.36,61.64043541]
[1727803467315,1.7713681,145.37,145.36,6.8794]
[1727803467727,1.7713681,145.37,145.36,61.64043541]
[1727803468816,1.5791225,145.53,145.43,17.1896]
[1727803469213,1.5791225,145.53,145.41,6.877]
[1727803469214,6.8743,145.47,145.41,6.877]
[1727803469515,1.5791225,145.53,145.36,54.76103541]
[1727803469516,1.5791225,145.53,145.36,17.1979]
[1727803469935,17.1838,145.49,145.39,17.195]
[1727803470135,1.5791225,145.53,145.35,54.76103541]
[1727803470136,17.1798,145.52,145.35,54.76103541]
[1727803470316,6.8742,145.48,145.42,24.0676]
[1727803470628,6.8719,145.52,145.46,6.8746]
[1727803470931,1.5791225,145.53,145.45,17.1879]
[1727803471137,6.8725,145.51,145.45,17.1879]
[1727803471318,1.5791225,145.53,145.41,17.1924]
[1727803471514,1.5791225,145.53,145.37,7.87268085]
[1727803471515,1.5791225,145.53,145.37,17.1964]
[1727803471717,17.1868,145.47,145.32,54.76103541]
[1727803472033,6.8755,145.45,145.36,17.1986]
[1727803472239,1.5791225,145.53,145.29,34.4118]
[1727803472425,2.0,145.49,145.31,17.2035]
[1727803472629,23.776884,145.46,145.31,24.0848]
[1727803472826,6.8783,145.39,145.33,6.8805]
[1727803473031,17.1916,145.42,145.32,6.8813]
[1727803473032,30.655584,145.38,145.32,6.8813]
[1727803473241,23.776884,145.38,145.33,1.37563508]
[1727803473426,23.776884,145.38,145.31,17.2035]
[1727803473427,23.776884,145.36,145.32,6.8813]
[1727803473628,20.0,145.44,145.33,17.201]
[1727803473831,34.3657,145.5,145.31,54.76103541]
[1727803474030,27.16506418,145.49,145.34,54.76103541]
[1727803474223,62.30452501,145.54,145.42,6.8766]
[1727803474224,6.8742,145.47,145.42,6.8766]
[1727803474429,61.6824,145.54,145.39,17.1948]
[1727803474724,61.6824,145.54,145.42,6.8765]
[1727803474725,6.8738,145.48,145.42,6.8765]
[1727803474921,6.8746,145.47,145.42,6.8765]
[1727803475114,22.80966413,145.52,145.43,6.876]
[1727803475315,27.3255,145.54,145.42,17.1915]
[1727803475621,27.3255,145.54,145.37,54.76103541]
[1727803475622,6.8747,145.47,145.37,54.76103541]
[1727803475831,6.8737,145.49,145.43,24.0663]
[1727803476059,27.3255,145.54,145.45,6.8749]
[1727803476212,27.3255,145.54,145.46,8.24861213]
[1727803476415,6.8706,145.55,145.49,6.873]
[1727803476718,6.8706,145.55,145.5,6.8728]
[1727803476918,17.1691,145.61,145.48,17.1833]
[1727803477227,27.1751,145.63,145.4,34.3866]
[1727803477228,6.872,145.52,145.47,6.874]
[1727803477423,17.1691,145.62,145.44,89.13773541]
[1727803477625,6.8728,145.5,145.45,6.8748]
[1727803477829,17.1797,145.52,145.34,54.76103541]
[1727803478038,6.8742,145.48,145.42,24.0679]
[1727803478243,34.3466,145.58,145.42,24.0679]
[1727803478244,17.1763,145.55,145.42,17.1914]
[1727803478632,6.8724,145.51,145.45,6.8751]
[1727803478842,23.776884,145.52,145.44,17.1882]
[1727803479139,20.0,145.54,145.44,17.1882]
[1727803479140,23.776884,145.5,145.45,6.8751]
[1727803479339,6.8785,145.38,145.23,6.79476799]
[1727803479523,23.776884,145.38,145.25,0.20990671]
[1727803479941,17.1845,145.48,145.3,54.76103541]
[1727803480132,25.7567,145.49,145.31,1.37492278]
[1727803480314,25.7567,145.49,145.3,54.76103541]
[1727803480519,17.1878,145.46,145.36,6.8793]
[1727803480722,17.1878,145.46,145.34,17.2]
[1727803481029,17.1953,145.39,145.27,17.2092]
[1727803481234,27.7567,145.49,145.25,0.20990671]
[1727803481432,23.776884,145.36,145.25,0.20990671]
[1727803481639,6.8771,145.41,145.35,6.8798]
[1727803481940,25.7567,145.49,145.26,54.76103541]
[1727803482131,25.7567,145.49,145.33,17.2012]
[1727803482132,17.1888,145.45,145.33,17.2012]
[1727803482334,17.1944,145.4,145.25,0.20990671]
[1727803482641,2.0,145.45,145.25,0.20990671]
[1727803482642,15.55033267,145.39,145.25,0.20990671]
[1727803482846,6.8818,145.31,145.25,0.20990671]
[1727803483021,6.8817,145.32,145.25,0.20990671]
[1727803483340,15.55033267,145.39,145.28,24.0903]
[1727803483341,17.1951,145.39,145.28,24.0903]
[1727803483522,23.776884,145.32,145.25,0.20990671]
[1727803483726,6.8815,145.32,145.26,6.8837]
[1727803483917,23.776884,145.31,145.25,17.42150671]
[1727803484117,8.35916732,145.43,145.25,17.42150671]
[1727803484118,6.879,145.37,145.31,6.8815]
[1727803484337,6.879,145.37,145.25,0.20990671]
[1727803484338,6.8805,145.34,145.25,0.20990671]
[1727803484540,20.0,145.48,145.25,0.20990671]
[1727803484541,17.1939,145.41,145.27,17.2084]
[1727803484816,6.8795,145.36,145.3,6.8821]
[1727803485044,6.8804,145.34,145.29,6.8827]
[1727803485224,37.1962,145.39,145.25,0.20990671]
[1727803485423,6.8823,145.3,145.25,0.20990671]
[1727803485722,34.3777,145.45,145.25,0.20990671]
[1727803485916,20.0,145.43,145.25,0.20990671]
[1727803486121,6.8797,145.36,145.31,17.2034]
[1727803486326,17.1941,145.4,145.31,17.2034]
[1727803486530,6.878,145.39,145.33,6.8808]
[1727803486850,6.8794,145.37,145.31,24.0852]
[1727803487141,6.8798,145.36,145.31,17.2034]
[1727803487343,17.1937,145.41,145.25,89.18353541]
[1727803487544,7.21665684,145.4,145.25,34.4225]
[1727803487848,23.776884,145.34,145.3,24.0874]
[1727803488142,23.776884,145.31,145.26,17.2093]
[1727803488349,23.776884,145.31,145.22,54.76103541]
[1727803488350,23.776884,145.28,145.22,17.2141]
[1727803488642,23.776884,145.28,145.2,34.4335]
[1727803488643,30.661484,145.26,145.2,6.8866]
[1727803488826,23.776884,145.24,145.19,17.2185]
[1727803489021,23.776884,145.26,145.22,17.2148]
[1727803489752,6.885,145.25,145.19,6.887]
[1727803489950,23.776884,145.24,145.2,1.37682728]
[1727803490242,23.776884,145.24,145.14,34.4492]
[1727803490243,23.776884,145.24,145.23,6.8856]
[1727803490451,18.3153,145.32,145.19,54.76103541]
[1727803490621,6.8823,145.3,145.25,24.0952]
[1727803490939,18.3153,145.32,145.25,17.2106]
[1727803491125,6.8822,145.31,145.26,6.8838]
[1727803491324,25.1967,145.32,145.27,6.8836]
[1727803491519,18.3153,145.32,145.25,24.0948]
[1727803491722,6.8818,145.31,145.26,6.8841]
[1727803491919,7.3425,145.34,145.22,54.76103541]
[1727803492129,7.3425,145.34,145.3,6.8822]
[1727803492329,7.3425,145.34,145.29,17.206]
[1727803492739,7.3425,145.34,145.33,6.8808]
[1727803492941,18.0949,145.41,145.33,6.8808]
[1727803492942,6.8787,145.38,145.33,6.8808]
[1727803493130,18.0949,145.41,145.26,34.4196]
[1727803493330,18.0949,145.41,145.29,17.2065]
[1727803493535,7.24636735,145.4,145.26,34.4196]
[1727803493839,6.88,145.35,145.3,6.8821]
[1727803494033,20.0,145.38,145.28,17.2079]
[1727803494251,14.12857319,145.37,145.32,6.8813]
[1727803494432,18.0949,145.41,145.31,6.8816]
[1727803494433,6.8797,145.36,145.31,6.8816]
[1727803494745,6.8786,145.38,145.32,24.0835]
[1727803494949,18.0949,145.41,145.29,17.2067]